Cogmind - Beta 15 @@@ ROGUE MODE // 2025.08.29 @ 03:51:36 Player: shapeshifter Result: Destroyed by 8R-AWN with 8R-AWN's Boregun Performance ------------- Evolutions (0) 0 Regions Visited (3) 600 Robots Destroyed (15) 75 Value Destroyed (231) 231 Prototype IDs (23) 460 Alien Tech Used (0) 0 Bonus (321) 321 TOTAL SCORE: 1687 Bonus ------- Follower Combat Kills 21 Aligned with FarCom 300 Cogmind --------- Core Integrity 0/250 Matter 238/300 Energy 71/100 System Corruption 0% Temperature Cool (0) Movement Core (50) Location -10/Exiles Parts ------- > --- POWER (1) -------- (None) > --- PROPULSION (2) --- (None) > --- UTILITY (2) ------ (None) > --- WEAPON (2) ------- Longsword +1 > --- INVENTORY (5) ---- High-capacity Battery (250) Superbattery (1500) Structural Scanner Improved Terrain Scanner Light Assault Rifle Peak State ------------ > --- POWER ------------ Light Ion Engine > --- PROPULSION ------- Wheel Wheel > --- UTILITY ---------- Humpback > --- WEAPON ----------- Grenade Launcher Longsword +1 > --- INVENTORY -------- Reinforced Deuterium Engine Reinforced Deuterium Engine Fission Core Large Storage Unit Huge Storage Unit High-capacity Battery Superbattery Structural Scanner Improved Terrain Scanner PSU Rigger Medium Laser Assault Rifle Assault Rifle Light Assault Rifle Light Assault Rifle Light Assault Rifle Light Assault Rifle [Rating: 18] Favorites ----------- Power Light Ion Engine Engine Light Ion Engine Propulsion Light Treads Treads Light Treads Wheel Wheel Utility Seismic Detector Device Seismic Detector Storage Humpback Weapon Assault Rifle Ballistic Gun Assault Rifle Launcher Grenade Launcher Slashing Weapon Longsword +1 Build | -11 -10 -10 -10 ------- Run | Yrd Mat Min Exi Slots Evolved . | . . . . Power . | . . . . Propulsion . | . . . . Utility . | . . . . Weapon . | . . . . Parts Attached 17 | 7 1 1 8 Power 2 | 1 . 1 . Engine 2 | 1 . 1 . Core . | . . . . Reactor . | . . . . Propulsion 4 | 2 . . 2 Treads 2 | 2 . . . Leg . | . . . . Wheel 2 | . . . 2 Hover . | . . . . Flight . | . . . . Utility 5 | 2 1 . 2 Device 1 | 1 . . . Storage 4 | 1 1 . 2 Processor . | . . . . Hackware . | . . . . Protection . | . . . . Artifact . | . . . . Weapon 6 | 2 . . 4 Energy Gun . | . . . . Energy Cannon . | . . . . Ballistic Gun 4 | 2 . . 2 Ballistic Cannon . | . . . . Launcher 1 | . . . 1 Special Weapon . | . . . . Impact Weapon . | . . . . Slashing Weapon 1 | . . . 1 Piercing Weapon . | . . . . Special Melee Weapon . | . . . . Unidentified Prototypes . | . . . . Parts Lost 6 | . . . 6 Power 1 | . . . 1 Propulsion 2 | . . . 2 Utility . | . . . . Weapon 3 | . . . 3 Highest Loss Streak 4 | . . . 4 To Critical Strikes 1 | . . . 1 Average Backups 11 | 3 7 13 14 Power 1 | . 1 1 2 Propulsion 1 | 1 2 2 . Utility 4 | . 2 5 5 Weapon 4 | 1 2 5 6 Tool/Special . | . . . . Unused Backups 12 | . . . 12 Power 3 | . . . 3 Propulsion . | . . . . Utility 6 | . . . 6 Weapon 3 | . . . 3 Tool/Special . | . . . . Average Slot Usage (%) 91 | . 100 100 86 Engine 13 | . 14 14 12 Treads 13 | . 28 28 4 Wheel 13 | . . . 22 Device 7 | . 14 14 4 Storage 13 | . 14 14 13 Ballistic Gun 19 | . 28 28 13 Launcher 3 | . . . 6 Slashing Weapon 4 | . . . 7 Peak Build Rating 18 | 7 8 8 18 Average Rating 10 | 5 7 8 13 On Entrance 5 | . 7 8 8 Naked Turns . | . . . . Heaviest Build 209 | 15 30 30 209 Greatest Support 40 | 40 40 40 40 Greatest Overweight (x) 20 | . . . 20 Average Overweight (x) 3 | . . . 6 Largest Inventory Capacity 35 | 8 15 15 35 Average Capacity 21 | 7 10 15 29 Most Carried 17 | 6 13 14 17 Average Carried 11 | 3 7 13 14 Final Capacity 15 | 8 15 15 5 Final Carried 13 | 5 13 13 5 Class Distribution -------------------- 66% | Mutant 33% | Hauler-Mutant Dominant Class ---------------- Mutant | -10/Materials Mutant | -10/Mines Hauler-Mutant | -10/Exiles Resources | -11 -10 -10 -10 ----------- Run | Yrd Mat Min Exi Matter Collected 596 | 267 172 87 70 Remotely . | . . . . Salvage Created 400 | 37 345 . 18 Parts 31 | 7 24 . . Haulers Intercepted 1 | . 1 . . Recyclers Shooed 1 | 1 . . . Parts Field Recycled . | . . . . Retrieved Matter . | . . . . Parts Self-Destructed . | . . . . Prevented . | . . . . Kills | -11 -10 -10 -10 ------- Run | Yrd Mat Min Exi Combat Hostiles Destroyed 12 | . 10 . 2 Guns 12 | . 10 . 2 Classes Destroyed 7 | 1 5 . 1 Worker 1 | . 1 . . Builder 1 | . 1 . . Tunneler 2 | 2 . . . Hauler 1 | . 1 . . Swarmer 6 | . 6 . . Grunt 4 | . 4 . . Assembled 2 | . . . 2 Best Kill Streak 4 | 1 4 . 2 Combat Bots Only 3 | . 3 . 2 Max Kills in Single Turn 2 | 1 2 . 1 Gunslinging . | . . . . Exploded . | . . . . Melee . | . . . . Uniques/NPCs Destroyed . | . . . . Combat | -11 -10 -10 -10 -------- Run | Yrd Mat Min Exi Hostile Shots Fired 104 | . 52 . 52 Missed 20 | . 10 . 10 Hits 84 | . 42 . 42 Melee 1 | . . . 1 Projectile 83 | . 42 . 41 Critical Strikes 5 | . . . 5 Damage Taken 1130 | . 414 . 716 Core 251 | . 45 . 206 Absorbed by Shields . | . . . . Core Remaining (%) 100 | 100 . . . Volleys Fired 47 | 5 36 . 6 Largest 2 | 2 2 . 2 Hottest 40 | 40 40 . 40 Shots Fired 92 | 10 72 . 10 Gun 91 | 10 72 . 9 Cannon . | . . . . Launcher 1 | . . . 1 Special . | . . . . Kinetic 91 | 10 72 . 9 Thermal . | . . . . Explosive 1 | . . . 1 Electromagnetic . | . . . . Robot Hit Streak 9 | 6 9 . 6 Robot Miss Streak 5 | 1 5 . 3 Penetration Max . | . . . . Secondary Targets 2 | . 2 . . Max Gunslinging Chain 1 | . 1 . . Shots Hit Robots 62 | 7 41 . 14 Core Hits 27 | 2 19 . 6 Critical Kills . | . . . . Critical Parts Destroyed . | . . . . Critical Strikes 1 | . . . 1 Sever 1 | . . . 1 Melee Attacks 10 | . . . 10 Impact . | . . . . Slashing 10 | . . . 10 Piercing . | . . . . Sneak Attacks . | . . . . Combat Hostiles . | . . . . Follow-up Attacks . | . . . . Damage Inflicted 1178 | 95 585 . 498 Guns 747 | 95 585 . 67 Cannons . | . . . . Explosions 59 | . . . 59 Melee 372 | . . . 372 Ramming . | . . . . Kinetic 747 | 95 585 . 67 Thermal . | . . . . Explosive 59 | . . . 59 Electromagnetic . | . . . . Impact . | . . . . Slashing 372 | . . . 372 Piercing . | . . . . Highest Corruption . | . . . . Average Corruption . | . . . . Corruption Purged . | . . . . Corruption Blocked . | . . . . Overload Shots . | . . . . Overflow Damage 17 | . . . 17 Projectiles . | . . . . Explosions 1 | . . . 1 Melee 16 | . . . 16 Knockbacks . | . . . . Impact . | . . . . Kinetic . | . . . . Secondary . | . . . . Self-Inflicted Damage . | . . . . Shots . | . . . . Rammed . | . . . . Targets Rammed . | . . . . Kicked . | . . . . Crushed . | . . . . Highest Temperature 5 | . 5 . 1 Average Temperature 3 | . 3 . 1 Received Heat Transfer 138 | . 138 . . Siege Activations . | . . . . Martial Activations . | . . . . Shielding Activations . | . . . . Robots Disrupted . | . . . . Combat Hostiles . | . . . . Robots Corrupted . | . . . . Combat Hostiles . | . . . . Parts Fried . | . . . . Impact Corruptions . | . . . . Robots Melted . | . . . . Combat Hostiles . | . . . . Parts Melted . | . . . . Heat Transferred . | . . . . Parts Sabotaged . | . . . . Parts Stolen . | . . . . Parts Stripped . | . . . . Power Chain Reactions . | . . . . Alert | -11 -10 -10 -10 ------- Run | Yrd Mat Min Exi Maximum Alert Level . | . . . . Low Security (%) 100 | 100 100 100 . Level 1 . | . . . . Level 2 . | . . . . Level 3 . | . . . . Level 4 . | . . . . Level 5 . | . . . . High Security . | . . . . Max Security . | . . . . Peak Influence 173 | 5 173 104 . Initial 53 | . . 53 . Average 47 | . 59 61 . Influence Increases 371 | 10 280 81 . Destroy 0b10 Robot/C 260 | . 200 60 . Destroy 0b10 Robot/NC 25 | 10 15 . . Destroy Leader 42 | . 32 10 . Allied During Kill 11 | . . 11 . Successful Hack 17 | . 17 . . Destroy Structure 1 | . 1 . . Lose Combat Pursuer 15 | . 15 . . Influence Decreases 371 | 10 143 134 84 Entered New Map 168 | . . 84 84 Time Decay 203 | 10 143 50 . Squads Dispatched 1 | . 1 . . Investigation . | . . . . Extermination . | . . . . Reinforcement 1 | . 1 . . Assault . | . . . . Garrison . | . . . . Intercept . | . . . . Searches Triggered . | . . . . Construction Impeded . | . . . . Haulers Reinforced . | . . . . Active Scanning Responses . | . . . . Cargo Convoy Interrupts . | . . . . Stealth | -11 -10 -10 -10 --------- Run | Yrd Mat Min Exi Distress Signals 1 | . 1 . . Communications Jammed . | . . . . Distress Signals . | . . . . Times Spotted 30 | . 19 3 8 Peak Tracking Total 9 | . 6 3 9 Tactical Retreats 1 | . 1 . . Traps | -11 -10 -10 -10 ------- Run | Yrd Mat Min Exi Traps Triggered . | . . . . Indirectly . | . . . . Trap Hack Attempts . | . . . . Triggered . | . . . . Disarmed . | . . . . Reprogrammed . | . . . . Reused . | . . . . Traps Extracted . | . . . . Installed . | . . . . Triggered . | . . . . Machines | -11 -10 -10 -10 ---------- Run | Yrd Mat Min Exi Machines Disabled 2 | . . . 2 Max in Single Turn 1 | . . . 1 Machines Repaired . | . . . . Machines Dismantled . | . . . . Machines Sabotaged . | . . . . Overloaded Fab Kills . | . . . . Hacking | -11 -10 -10 -10 --------- Run | Yrd Mat Min Exi Machines Accessed 5 | . 3 . 2 Terminals 3 | . 3 . . Fabricators . | . . . . Repair Stations . | . . . . Recycling Units . | . . . . Scanalyzers . | . . . . Garrison Access . | . . . . Total Hacks 13 | . 11 . 2 Successful 7 | . 5 . 2 Failed 6 | . 6 . . Catastrophic 1 | . 1 . . Database Lockouts . | . . . . Manual 12 | . 11 . 1 Terminals 11 | . 11 . . Fabricators . | . . . . Repair Stations . | . . . . Recycling Units . | . . . . Scanalyzers . | . . . . Garrison Access . | . . . . Terminal Hacks 5 | . 3 . 2 Record 1 | . . . 1 Branch Access Points 1 | . 1 . . Registered Components 1 | . 1 . . Zone Layout 1 | . 1 . . Proto ID Catalog 1 | . . . 1 Fabricator Hacks . | . . . . Repair Station Hacks . | . . . . Recycling Unit Hacks . | . . . . Scanalyzer . | . . . . Garrison Access Hacks . | . . . . Unauthorized Hacks 2 | . 2 . . Terminals 2 | . 2 . . Botnet 2 | . 2 . . Fabricators . | . . . . Repair Stations . | . . . . Recycling Units . | . . . . Scanalyzers . | . . . . Garrison Access . | . . . . Data Cores Recovered . | . . . . Used . | . . . . Hacking Detections 2 | . 2 . . Full Trace Events 1 | . 1 . . Feedback Events . | . . . . Feedback Blocked . | . . . . Robot Schematics Acquired . | . . . . Robots Built . | . . . . Authchips . | . . . . Time . | . . . . Total Robot Build Rating . | . . . . Part Schematics Acquired . | . . . . Parts Built . | . . . . Authchips . | . . . . Time . | . . . . Total Part Build Rating . | . . . . Parts Repaired . | . . . . Time . | . . . . Parts Recycled . | . . . . Recycled Matter . | . . . . Retrieved Matter . | . . . . Retrieved Components . | . . . . Parts Scanalyzed . | . . . . Part Schematics Acquired . | . . . . Parts Damaged . | . . . . Bothacking | -11 -10 -10 -10 ------------ Run | Yrd Mat Min Exi Used RIF Installer . | . . . . Robots Hacked . | . . . . Non-combat . | . . . . Combat . | . . . . Robot Hacks Applied . | . . . . Relay Couplers Released . | . . . . Fabnet Peak Effective % . | . . . . Robots Rewired . | . . . . Allies Hacked . | . . . . Hacks Repelled . | . . . . Allies | -11 -10 -10 -10 -------- Run | Yrd Mat Min Exi Total Allies 3 | . . 3 . Largest Group 3 | . . 3 3 Highest-Rated Group 40 | . . 40 40 Highest-Rated Ally 16 | . . 16 16 Total Orders 3 | . . . 3 STAY 2 | . . . 2 FOLLOW 1 | . . . 1 Ally Attacks 24 | . . 3 21 Total Damage 132 | . . 39 93 Kills 5 | . . 3 2 Allies Corrupted . | . . . . Allies Melted . | . . . . Intel | -11 -10 -10 -10 ------- Run | Yrd Mat Min Exi Active Infowar (turns) 813 | 9 427 116 261 Seismic 813 | 9 427 116 261 Robot Analysis Total . | . . . . Derelict Logs Recovered . | . . . . Drone Launches . | . . . . Drone Recoveries . | . . . . Exploration | -11 -10 -10 -10 ------------- Run | Yrd Mat Min Exi Turns Passed 1578 | 142 427 116 893 Spaces Moved 748 | 77 191 66 414 Core 15 | 13 . . 2 Treads 400 | 64 191 66 79 Legs . | . . . . Wheels 333 | . . . 333 Hover . | . . . . Flight . | . . . . Fastest Speed 50 | 50 160 160 50 Average Speed 172 | 141 160 160 186 Slowest Speed 380 | 160 160 160 380 Overloaded Moves . | . . . . Propulsion Burnouts . | . . . . Robots Hopped . | . . . . Potential Cave-ins . | . . . . Cave-ins Triggered . | . . . . Exploration Rate (%) 34 | 6 40 25 66 Regions Visited 3 Branch Regions 2 Pre-discovered Areas 1 | . . . 1 Known Exits Taken 1 | . 1 . . Unknown Exits Taken 2 | 1 . 1 . Scrap Searched 1 | . . 1 . Spaces Dug . | . . . . Terrain Destroyed 3 | . . . 3 Melee . | . . . . Projectile . | . . . . AOE 3 | . . . 3 Terrain Rammed . | . . . . Walls Destroyed . | . . . . Machines Disabled . | . . . . Actions | -11 -10 -10 -10 --------- Run | Yrd Mat Min Exi Total 937 | 100 242 76 519 Wait 61 | . 6 8 47 Move 745 | 76 190 65 414 Hop . | . . . . Pick Up 40 | 12 8 1 19 Fast Attach . | . . . . Attach 12 | 7 . . 5 Detach 1 | . . . 1 Swap 8 | . 1 1 6 Drop 13 | . 1 1 11 Fire 47 | 5 36 . 6 Melee 10 | . . . 10 Ram . | . . . . Kick . | . . . . Crush . | . . . . Escape Stasis . | . . . . Rewire . | . . . . Trap . | . . . . Miscellaneous . | . . . . Route ------- -11/Scrapyard -10/Materials -10/Mines (discovered 2 exits: [*Mat] / *Exi) -10/Exiles History --------- Turn | Location | Event 8 | -11/Scrapyard | Discovered new exit (range 15) 143 | -11/Scrapyard | Entered Materials 187 | -10/Materials | Identified exit to Mines 307 | -10/Materials | Build established: Mutant 570 | -10/Materials | Entered Mines 598 | -10/Mines | Assisted by bots powering up and referring to "LRC-V3" 633 | -10/Mines | Discovered new exit (range 9) 669 | -10/Mines | Deemed a non-threat by the Exiles lab entrance 669 | -10/Mines | Discovered new exit (range 5) 686 | -10/Mines | Entered Exiles 686 | -10/Exiles | Accompanied by 3 allies 730 | -10/Exiles | Met 8R-AWN 756 | -10/Exiles | Met EX-HEX 847 | -10/Exiles | Met EX-DEC 869 | -10/Exiles | Learned location of Zion (-6) 963 | -10/Exiles | Met EX-BIN 983 | -10/Exiles | Aligned with FarCom system 984 | -10/Exiles | Given EX-Vault access code 1018 | -10/Exiles | Opened EX-Vault 1031 | -10/Exiles | Found Longsword +1 1085 | -10/Exiles | Found Superbattery 1090 | -10/Exiles | Found PSU Rigger 1133 | -10/Exiles | Warned to stay clear of 0b10 Research branches 1330 | -10/Exiles | Build established: Hauler-Mutant 1450 | -10/Exiles | Attacked by the Exiles 1530 | -10/Exiles | Lost 4 parts (1p1n2w) 1561 | -10/Exiles | Lost 3 allies 1563 | -10/Exiles | Core integrity fell below 50% 1573 | -10/Exiles | Core integrity fell below 20% 1579 | -10/Exiles | Destroyed by 8R-AWN with 8R-AWN's Boregun Last Messages --------------- 01567_ Wheel destroyed. 01567_ HV Slug penetrates Earth. 01567_ Penetrated by HV Slug. 01567_ HV Slug penetrates Earth. 01569_ 8R-AWN Rnf. Fission Core severed. 01570_ Penetrated by HV Slug. 01570_ HV Slug penetrates Earth. 01570_ Penetrated by HV Slug. 01570_ HV Slug penetrates Earth. 01571_ Dropped Lgt. Assault Rifle. 01572_ Penetrated by HV Slug. 01572_ HV Slug penetrates Earth. 01572_ HV Slug penetrates Wall. 01575_ Penetrated by HV Slug. 01575_ HV Slug penetrates Earth. 01575_ Penetrated by HV Slug. 01575_ HV Slug penetrates Earth. 01579_ Destroyed Prototype Device. 01579_ HV Slug penetrates Wall. 01579_ Penetrated by HV Slug. Map ----- +----------------------------------------------------+ | ?????????????????????????????????????????????????? | | ?????????????????????????????????????????????????? | | ?????????????????????????????????????????????????? | | ?????????????????????????????????????????????????? | | ?????????????????????????????????????????????????? | | ?????????????????????????????????????????????????? | | ?????????????????????????????????????????????????? | | ?????????????????????????????????????????????????? | | ?????????????????????????????????????????????????? | | ?????????????????????????????????????????????????? | | ?????????????????????????????????????????????????? | | ?????????????????????????????????????????????????? | | ?????????????????????????????????????????????????? | | ?????????????????????????????????????????????????? | | ?????????????????????????????????????????????????? | | ?????????????? ??????????????#######?????????????? | | ????????????? ######???????#!!! "#?????????????? | | ????????????? #""#??????# "#?????????????? | | ????????????? ??????# "#?????????????? | | ?????????????" #????## ""#?????????????# | | ?????????????" #####" ""#???????????? | | ??????????????# ##" ""#????????????" | | ???????????????# #"" ###????????????" | | ??????????????????# #?????????????"" | | ???????????????????### g ##????????????"" | | ?????????????????????### @ ####????????? | | ???????????????########" * [% # #????????" | | ???????????????# !!""""" [ # #???????# | | ???????????????#! !["###"" = ####??### | | ???????????????#! [!"#?## %[%= ""###X# | | ???????????????#! !!##??#" *[%!* | | ???????????????# !""""""#;#???# # =![= % | | ???????????????#####;#### #???### | | ???????????????????##???# #??????### %% % | | ????????????????????????# #????????### | | ????????????????????????# #??????????## | | ????????????????????????? ????????????## | | ????????????????????????? ?????????????##" | | ????????????????????????? ??????????????#""" | | ????????????????????????? ?????????????##" | | ?????????????????????????#?????????????#"" | | ???????????????????????????????????????#""" | | ???????????????????????????????????????""" | | ???????????????????????????????????????""" | | ???????????????????????????????????????"" | | ???????????????????????????????????????""" | | ???????????????????????????????????????"" | | ???????????????????????????????????????#"" | | ???????????????????????????????????????#"""" | | ????????????????????????????????????????# | +----------------------------------------------------+ Best States ------------- Heat Dissipation 25 Energy Generation 10 Energy Capacity 250 Matter Stores 300 Matter Capacity 300 Sight Range 16 Terrain Scan Density 10 Evasion (%) 50 Recoil Reduction 2 Item Schematics ----------------- None Robot Schematics ------------------ None Fabricated ------------ Nothing Repaired ---------- Nothing Alien Tech Used ----------------- None Achievements -------------- None Challenges ------------ None Game ------ Seed ActiveHardcellLance Manual? 0 Play Time 00:08:28 Cumulative 221.1 hours Start 2025.08.29 @ 03:43:26 End 2025.08.29 @ 03:51:36 Sessions 1 Manual Loads 0 Difficulty Rogue Special Mode None Game No. 330 Rogue 330 Adventurer 0 Explorer 0 Win Type - Total 4 Types 3/0/1/0/0/0/0/0/0/0 Lore% 80 Gallery% 76 Achievement% 57 Wizard Run 0 Options --------- Layout 1 ASCII 0 Keyboard 0 Movement Mouse Keybinds 0 Fullscreen 1 Font 32/SmallcapsGlow Map View 50x35 Zoom Use 0% Tactical HUD 1 Map Filters NONE Filters NONE Steam 1 RUN: c43184a1-bcad-41e2-a86d-627f28053f37